bitfinex/quotes_BTCUSD_20241206
["timestamp","ask_amount","ask_price","bid_price","bid_amount"]
[1733480161718,0.407828,98081.0,98077.0,0.00117445]
[1733480161894,0.052,98085.0,98077.0,0.00017445]
[1733480162127,0.203917,98079.0,98077.0,0.00017445]
[1733480163348,0.203917,98079.0,98077.0,0.00117445]
[1733480163556,0.203917,98079.0,98077.0,0.00017445]
[1733480163754,0.221917,98079.0,98077.0,0.00217445]
[1733480166028,0.018,98079.0,98077.0,0.00217445]
[1733480166454,0.221917,98079.0,98077.0,0.00217445]
[1733480170675,0.203919,98078.0,98077.0,0.00217445]
[1733480171838,0.203919,98078.0,98077.0,0.00117445]
[1733480172318,0.212919,98078.0,98077.0,0.00217445]
[1733480172791,0.212919,98078.0,98077.0,0.00117445]
[1733480173017,0.219919,98078.0,98077.0,0.00217445]
[1733480173301,0.44815054,98078.0,98077.0,0.00217445]
[1733480173978,0.45696471,98078.0,98077.0,0.00217445]
[1733480174210,0.50696471,98078.0,98077.0,0.00217445]
[1733480176374,0.49815054,98078.0,98077.0,0.00217445]
[1733480176600,0.50695966,98078.0,98077.0,0.00217445]
[1733480177555,0.86735966,98078.0,98077.0,0.00217445]
[1733480178030,0.85855054,98078.0,98077.0,0.00217445]
[1733480178263,0.753519,98078.0,98077.0,0.00217445]
[1733480180480,0.219919,98078.0,98077.0,0.00217445]
[1733480180725,0.32495054,98078.0,98077.0,0.00217445]
[1733480181951,0.45705923,98078.0,98077.0,0.00217445]
[1733480182178,0.47727856,98078.0,98077.0,0.00217445]
[1733480182447,0.35397856,98078.0,98077.0,0.00217445]
[1733480182937,0.34516987,98078.0,98077.0,0.00217445]
[1733480183718,0.35397703,98078.0,98077.0,0.00217445]
[1733480187100,0.3337577,98078.0,98077.0,0.00217445]
[1733480192444,0.35378256,98078.0,98077.0,0.00217445]
[1733480194039,0.35381141,98078.0,98077.0,0.00217445]
[1733480195441,0.88741141,98078.0,98077.0,0.00217445]
[1733480195851,0.86738655,98078.0,98077.0,0.00217445]
[1733480196054,0.76235501,98078.0,98077.0,0.00217445]
[1733480196768,0.55843601,98078.0,98077.0,0.00217445]
[1733480197602,0.55844225,98078.0,98077.0,0.00217445]
[1733480197801,0.55844225,98078.0,98070.0,0.0008629]
[1733480197802,0.05,98073.0,98070.0,0.0008629]
[1733480198007,0.40896454,98071.0,98070.0,9e-07]
[1733480198224,0.43196454,98071.0,98070.0,9e-07]
[1733480198418,1.94080679,98071.0,98070.0,9e-07]
[1733480199040,0.44080679,98071.0,98070.0,9e-07]
[1733480199248,0.47136446,98071.0,98070.0,9e-07]
[1733480199400,0.48036446,98071.0,98070.0,0.0010009]
[1733480199764,0.48036446,98071.0,98070.0,0.0020009]
[1733480199765,0.48936446,98071.0,98070.0,0.0020009]
[1733480200617,0.48936446,98071.0,98070.0,9e-07]
[1733480200618,0.5277747,98071.0,98070.0,9e-07]
[1733480200848,0.52776394,98071.0,98070.0,9e-07]
[1733480200978,1.4392606,98071.0,98070.0,9e-07]
[1733480201510,1.9728606,98071.0,98070.0,9e-07]
[1733480201687,2.00340168,98071.0,98070.0,9e-07]
[1733480202074,2.03367225,98071.0,98070.0,9e-07]
[1733480202710,3.53367225,98071.0,98070.0,9e-07]
[1733480203634,3.50340168,98071.0,98070.0,4e-07]
[1733480203835,3.53367225,98071.0,98070.0,4e-07]
[1733480204268,3.62504035,98071.0,98070.0,4e-07]
[1733480204469,3.67059372,98071.0,98070.0,4e-07]
[1733480205334,2.03366216,98071.0,98070.0,4e-07]
[1733480205535,2.14032315,98071.0,98070.0,4e-07]
[1733480206067,2.16064822,98071.0,98070.0,4e-07]
[1733480206292,2.02371666,98071.0,98070.0,4e-07]
[1733480206704,1.98530642,98071.0,98070.0,4e-07]
[1733480206860,2.04558135,98071.0,98070.0,4e-07]
[1733480207058,2.55558135,98071.0,98070.0,4e-07]
[1733480207265,2.64697322,98071.0,98070.0,4e-07]
[1733480207467,2.85558135,98071.0,98070.0,4e-07]
[1733480207670,2.34558135,98071.0,98070.0,4e-07]
[1733480207873,2.31504027,98071.0,98070.0,4e-07]
[1733480208078,2.21144027,98071.0,98070.0,4e-07]
[1733480208307,2.11144027,98071.0,98070.0,4e-07]
[1733480211153,2.10261887,98071.0,98070.0,4e-07]
[1733480211355,2.11143976,98071.0,98070.0,4e-07]
[1733480212394,2.13182025,98071.0,98070.0,4e-07]
[1733480212850,2.89632025,98071.0,98070.0,4e-07]
[1733480214813,0.33578543,98071.0,98070.0,4e-07]
[1733480215674,0.32678543,98071.0,98070.0,4e-07]
[1733480215890,0.31778543,98071.0,98070.0,4e-07]
[1733480216117,0.32678543,98071.0,98070.0,4e-07]
[1733480216341,0.33578543,98071.0,98070.0,4e-07]
[1733480218221,0.33579042,98071.0,98070.0,4e-07]
[1733480219617,0.86939042,98071.0,98070.0,4e-07]
[1733480223060,0.94239042,98071.0,98070.0,4e-07]
[1733480223283,0.97784863,98071.0,98070.0,4e-07]
[1733480223541,2.44239042,98071.0,98070.0,4e-07]
[1733480224295,0.94239042,98071.0,98070.0,4e-07]
[1733480225499,0.86939042,98071.0,98070.0,4e-07]
[1733480226683,0.88963953,98071.0,98070.0,4e-07]
[1733480228576,1.01263953,98071.0,98070.0,4e-07]
[1733480229064,1.1040314,98071.0,98070.0,4e-07]
[1733480229312,1.12207927,98071.0,98070.0,4e-07]
[1733480229539,1.25901083,98071.0,98070.0,4e-07]
[1733480229983,1.25001083,98071.0,98070.0,4e-07]
[1733480230219,2.75001083,98071.0,98070.0,4e-07]
[1733480230710,2.75032725,98071.0,98070.0,4e-07]
[1733480230934,2.74150137,98071.0,98070.0,4e-07]
[1733480231194,1.037575,98051.0,98050.0,9e-07]
[1733480231426,1.20328676,98051.0,98050.0,9e-07]
[1733480232096,1.22628676,98051.0,98050.0,9e-07]
[1733480232541,1.24428676,98051.0,98050.0,9e-07]
[1733480233706,1.23560654,98051.0,98050.0,9e-07]
[1733480233938,1.24428433,98051.0,98050.0,9e-07]
[1733480237263,1.29428433,98051.0,98050.0,9e-07]
[1733480237500,1.45493354,98051.0,98050.0,9e-07]
[1733480238229,2.94711246,98051.0,98050.0,9e-07]
[1733480238459,3.13008582,98051.0,98050.0,9e-07]
[1733480239329,2.94711246,98051.0,98050.0,9e-07]
[1733480239550,2.85071246,98051.0,98050.0,9e-07]
[1733480239790,1.37017047,98051.0,98050.0,9e-07]
[1733480240441,2.2729585,98051.0,98050.0,9e-07]
[1733480240651,2.2729585,98051.0,98018.0,0.0755]
[1733480240652,0.204042,98019.0,98018.0,0.0755]
[1733480240868,0.36974809,98019.0,98018.0,0.0755]
[1733480241501,0.3901308,98019.0,98018.0,0.0755]
[1733480241735,0.36974809,98019.0,98018.0,0.0755]
[1733480241937,0.36974809,98019.0,98018.0,0.07567445]
[1733480242392,0.37874809,98019.0,98018.0,0.07567445]
[1733480242596,0.37007354,98019.0,98018.0,0.07567445]
[1733480242795,0.37861874,98019.0,98018.0,0.07567445]
[1733480243220,0.37007354,98019.0,98018.0,0.07567445]
[1733480243512,0.37007354,98019.0,98018.0,0.00017445]
[1733480243740,0.37907354,98019.0,98018.0,0.00017445]
[1733480246706,0.91267264,98019.0,98018.0,0.00017445]
[1733480246924,1.08299368,98019.0,98018.0,0.00017445]
[1733480247163,1.15599368,98019.0,98018.0,4.5e-07]
[1733480247593,1.15419083,98019.0,98018.0,4.5e-07]
[1733480248696,1.10419083,98019.0,98018.0,4.5e-07]
[1733480249556,1.08119083,98019.0,98018.0,0.08310045]
[1733480250236,1.08119083,98019.0,98018.0,4.5e-07]
[1733480251947,1.06086979,98019.0,98018.0,4.5e-07]
[1733480252366,0.91086979,98019.0,98018.0,4.5e-07]
[1733480252602,0.377042,98019.0,98018.0,4.5e-07]
[1733480255303,0.27201046,98019.0,98018.0,4.5e-07]
[1733480255505,0.22001046,98019.0,98018.0,0.13250045]
[1733480256373,0.21101046,98019.0,98018.0,0.13250045]
[1733480256578,0.22001046,98019.0,98018.0,0.13250045]
[1733480257194,0.20201046,98019.0,98018.0,0.13250045]
[1733480257399,0.009,98019.0,98018.0,0.13250045]
[1733480257606,0.018,98019.0,98018.0,0.13250045]
[1733480259392,0.009,98019.0,98018.0,0.13250045]
[1733480259703,0.01,98019.0,98018.0,0.13450045]
[1733480260501,0.001,98019.0,98018.0,0.13450045]
[1733480260911,0.002,98019.0,98018.0,0.13750045]
[1733480263989,0.002,98019.0,98018.0,0.34154445]
[1733480269842,0.002,98019.0,98018.0,0.13750045]
[1733480270043,0.206042,98019.0,98018.0,0.13750045]
[1733480270913,0.206042,98019.0,98018.0,0.08770045]
[1733480272536,0.002,98019.0,98018.0,0.08770045]
[1733480277016,0.002,98019.0,98018.0,0.00500045]
[1733480284384,0.10703154,98019.0,98018.0,0.00500045]
[1733480290107,0.18003154,98019.0,98018.0,0.00500045]
[1733480291086,0.17903154,98019.0,98018.0,0.00300045]
[1733480291239,0.18703154,98019.0,98018.0,4.5e-07]
[1733480291440,0.19603154,98019.0,98018.0,4.5e-07]
[1733480291668,0.18703154,98019.0,98018.0,4.5e-07]
[1733480292041,0.19603154,98019.0,98018.0,4.5e-07]
[1733480294704,0.72963064,98019.0,98018.0,4.5e-07]
[1733480296859,0.75054126,98019.0,98018.0,4.5e-07]
[1733480298824,0.75054126,98019.0,98010.0,3.5e-07]
[1733480298825,1.1935571,98011.0,98010.0,3.5e-07]
[1733480299032,1.92318557,98011.0,98010.0,3.5e-07]
[1733480299237,2.02518557,98011.0,98010.0,3.5e-07]
[1733480299642,3.55675884,98011.0,98010.0,3.5e-07]
[1733480300256,3.61575884,98011.0,98010.0,3.5e-07]
[1733480300666,3.62475884,98011.0,98010.0,3.5e-07]
[1733480300873,3.61575884,98011.0,98010.0,3.5e-07]
[1733480301283,3.62475884,98011.0,98010.0,3.5e-07]
[1733480301486,3.61575884,98011.0,98010.0,3.5e-07]
[1733480301691,3.62475884,98011.0,98010.0,3.5e-07]
[1733480302408,3.59318557,98011.0,98010.0,3.5e-07]
[1733480303332,2.09318557,98011.0,98010.0,3.5e-07]
[1733480305137,2.12475884,98011.0,98010.0,3.5e-07]
[1733480305893,3.62475884,98011.0,98010.0,3.5e-07]
[1733480307166,3.63007986,98011.0,98010.0,3.5e-07]
[1733480307916,4.39607986,98011.0,98010.0,3.5e-07]
[1733480308711,4.41631422,98011.0,98010.0,3.5e-07]
[1733480309477,4.41631422,98011.0,97980.0,0.0008642]
[1733480309478,0.204121,97981.0,97980.0,0.0008642]
[1733480309863,0.204121,97981.0,97980.0,0.00144651]
[1733480309864,0.36115254,97981.0,97980.0,0.00144651]
[1733480310895,0.37015254,97981.0,97980.0,0.00144651]
[1733480311728,0.40215254,97981.0,97980.0,0.00144651]
[1733480312134,0.39315254,97981.0,97980.0,0.00144651]
[1733480312357,0.40215254,97981.0,97980.0,0.00144651]
[1733480312772,0.40215254,97981.0,97970.0,0.0008625]
[1733480312773,0.577142,97971.0,97970.0,5e-07]
[1733480312948,1.24517354,97971.0,97970.0,5e-07]
[1733480313204,1.76164681,97971.0,97970.0,5e-07]
[1733480313407,3.19484321,97971.0,97970.0,5e-07]
[1733480313716,3.19484321,97971.0,97950.0,6e-07]
[1733480313717,0.527183,97951.0,97950.0,6e-07]
[1733480313942,1.25871147,97951.0,97950.0,6e-07]
[1733480314099,1.41862502,97951.0,97950.0,6e-07]
[1733480314300,1.67362502,97951.0,97950.0,6e-07]
[1733480314859,1.74902502,97951.0,97950.0,6e-07]
[1733480315319,1.74902502,97951.0,97950.0,2e-08]
[1733480315649,3.24902502,97951.0,97950.0,2e-08]
[1733480315854,3.29902502,97951.0,97950.0,2e-08]
[1733480316063,3.81902502,97951.0,97950.0,2e-08]
[1733480316380,4.79072934,97951.0,97950.0,2e-08]
[1733480316995,4.84952934,97951.0,97950.0,2e-08]
[1733480317401,4.33852934,97951.0,97950.0,2e-08]
[1733480317579,4.32952934,97951.0,97950.0,2e-08]
[1733480317784,4.33852934,97951.0,97950.0,2e-08]
[1733480318391,4.33852934,97951.0,97950.0,9.2e-07]
[1733480319479,4.32952934,97951.0,97950.0,9.2e-07]
[1733480319830,4.33852934,97951.0,97950.0,9.2e-07]
[1733480321625,4.31833974,97951.0,97950.0,9.2e-07]
[1733480322781,6.05730719,97951.0,97950.0,9.2e-07]
[1733480323178,0.627225,97931.0,97930.0,6.2e-07]
[1733480323389,0.78425654,97931.0,97930.0,2.4e-07]
[1733480323553,1.82831087,97931.0,97930.0,2.4e-07]
[1733480323755,2.31190997,97931.0,97930.0,2.4e-07]
[1733480324660,2.32090997,97931.0,97930.0,2.4e-07]
[1733480325336,2.32990997,97931.0,97930.0,2.4e-07]
[1733480326268,2.41247056,97931.0,97930.0,2.4e-07]
[1733480326506,2.41247056,97931.0,97920.0,0.0008634]
[1733480326507,0.577246,97921.0,97920.0,6.4e-07]
[1733480326734,0.78427754,97921.0,97920.0,6.4e-07]
[1733480327442,0.81683813,97921.0,97920.0,6.4e-07]
[1733480327676,0.84615816,97921.0,97920.0,6.4e-07]
[1733480327903,0.85515816,97921.0,97920.0,6.4e-07]
[1733480328143,0.84615816,97921.0,97920.0,6.4e-07]
[1733480328366,0.85515816,97921.0,97920.0,6.4e-07]
[1733480328603,0.86048377,97921.0,97920.0,6.4e-07]
[1733480329501,0.80760315,97921.0,97920.0,6.4e-07]
[1733480329960,0.50760315,97921.0,97920.0,6.4e-07]
[1733480330437,0.52793956,97921.0,97920.0,6.4e-07]
[1733480330921,1.06153866,97921.0,97920.0,6.4e-07]
[1733480331634,0.3,97907.0,97899.0,0.0454]
[1733480331857,0.254269,97910.0,97870.0,0.0008659]
[1733480331858,0.204317,97887.0,97886.0,0.0498]
[1733480332080,0.3,97885.0,97870.0,0.0008659]
[1733480332310,0.254329,97881.0,97880.0,0.00103845]
[1733480332528,0.35936054,97881.0,97880.0,0.00103845]
[1733480333482,0.35936054,97881.0,97880.0,4.5e-07]
[1733480333702,0.40925954,97881.0,97880.0,4.5e-07]
[1733480333922,0.41825954,97881.0,97880.0,4.5e-07]
[1733480334381,0.49125954,97881.0,97880.0,4.5e-07]
[1733480335722,0.43225954,97881.0,97880.0,4.5e-07]
[1733480335930,0.48225954,97881.0,97880.0,4.5e-07]
[1733480336975,1.98225954,97881.0,97880.0,4.5e-07]
[1733480337392,1.99125954,97881.0,97880.0,4.5e-07]
[1733480337656,0.62325954,97881.0,97880.0,4.5e-07]
[1733480337892,0.38830711,97881.0,97880.0,4.5e-07]
[1733480338131,0.38830711,97881.0,97880.0,0.07500045]
[1733480338387,0.53830711,97881.0,97880.0,0.07500045]
[1733480338826,0.52930711,97881.0,97880.0,0.07500045]
[1733480339029,0.53830711,97881.0,97880.0,0.07500045]
[1733480339266,0.52930711,97881.0,97880.0,0.07500045]
[1733480339475,0.53830711,97881.0,97880.0,0.07500045]
[1733480339682,0.52930711,97881.0,97880.0,0.07500045]
[1733480340104,0.52930711,97881.0,97880.0,4.5e-07]
[1733480340105,0.53830711,97881.0,97880.0,4.5e-07]
[1733480341559,0.51825954,97881.0,97880.0,4.5e-07]
[1733480341772,0.51825954,97881.0,97880.0,0.00086675]
[1733480341989,0.263228,97881.0,97880.0,0.00086675]
[1733480342205,0.222329,97881.0,97880.0,0.12816675]
[1733480342418,0.32794479,97882.0,97880.0,0.12816675]
[1733480342625,0.040891,97881.0,97880.0,0.12816675]
[1733480343038,0.058891,97881.0,97880.0,0.12816675]
[1733480343457,0.14592254,97881.0,97880.0,0.12816675]
[1733480343665,0.35025154,97881.0,97880.0,0.12816675]
[1733480343874,0.35925154,97881.0,97880.0,0.12816675]
[1733480344298,0.36825154,97881.0,97880.0,0.12816675]
[1733480347123,0.38865453,97881.0,97880.0,0.12816675]
[1733480349142,0.38865453,97881.0,97880.0,0.00086675]
[1733480351741,0.36825154,97881.0,97880.0,0.00086675]
[1733480353741,0.26322,97881.0,97880.0,0.00086675]
[1733480353958,0.26322,97881.0,97880.0,0.08396675]
[1733480357111,0.28367156,97881.0,97880.0,0.08396675]
[1733480358170,0.058891,97881.0,97880.0,0.08396675]
[1733480358394,0.018,97881.0,97880.0,0.13346675]
[1733480358636,0.0017306,97890.0,97887.0,0.204317]
[1733480358895,0.0017306,97890.0,97887.0,0.334617]
[1733480359569,0.0017306,97890.0,97887.0,0.85381699]
[1733480359816,0.0017306,97890.0,97887.0,0.47167613]
[1733480360044,0.0017306,97890.0,97887.0,0.91386867]
[1733480360283,0.0017306,97890.0,97887.0,0.47459762]
[1733480360284,0.02764054,97888.0,97887.0,0.47459762]
[1733480360510,0.02764054,97888.0,97887.0,0.1373]
[1733480360748,0.02764054,97888.0,97887.0,0.007]
[1733480361208,0.15401807,97888.0,97887.0,0.016]
[1733480361433,0.45401807,97888.0,97887.0,0.016]
[1733480361656,0.46154646,97888.0,97887.0,0.007]
[1733480362122,0.46154646,97888.0,97887.0,0.008]
[1733480362123,0.46954646,97888.0,97887.0,0.008]
[1733480362347,0.46854646,97888.0,97887.0,0.001]
[1733480362589,0.46854646,97888.0,97880.0,0.00086675]
[1733480362590,0.204329,97881.0,97880.0,0.00086675]
[1733480362837,0.30936054,97881.0,97880.0,0.00086675]
[1733480363535,0.317888,97881.0,97880.0,0.00086675]
[1733480364025,0.30936054,97881.0,97880.0,0.00086675]
[1733480364286,0.31836054,97881.0,97880.0,0.00186675]
[1733480364556,0.32688843,97881.0,97880.0,0.00186675]
[1733480364809,0.31836054,97881.0,97880.0,0.00186675]
[1733480365329,0.32688984,97881.0,97880.0,0.00186675]
[1733480365542,0.32688984,97881.0,97880.0,0.00286675]
[1733480367322,0.40578984,97881.0,97880.0,0.00286675]
[1733480367777,0.32688984,97881.0,97880.0,0.00286675]
[1733480369281,0.32688984,97881.0,97880.0,7.5e-07]
[1733480369859,0.31788984,97881.0,97880.0,7.5e-07]
[1733480370248,0.32688984,97881.0,97880.0,0.00100075]
[1733480370468,0.32688984,97881.0,97880.0,0.001]
[1733480370469,1.27804634,97881.0,97880.0,0.001]
[1733480370673,0.50435,97871.0,97860.0,0.0008648]
[1733480370870,0.66991084,97871.0,97870.0,0.00099067]
[1733480372516,0.67891084,97871.0,97870.0,0.00099067]
[1733480372742,0.68791084,97871.0,97870.0,0.00099067]
[1733480374007,0.83791084,97871.0,97870.0,0.00099067]
[1733480374655,0.83789807,97871.0,97870.0,0.00099067]
[1733480374859,0.53789807,97871.0,97870.0,0.00099067]
[1733480375065,0.66899838,97871.0,97870.0,0.00099067]
[1733480375258,0.69199824,97871.0,97870.0,6.7e-07]
[1733480375775,0.69199824,97871.0,97870.0,0.00086597]
[1733480376206,2.27461138,97871.0,97870.0,0.00086597]
[1733480376444,2.32042987,97871.0,97870.0,0.00086597]
[1733480376670,2.19199824,97871.0,97870.0,0.00086597]
[1733480376905,2.18299824,97871.0,97870.0,0.00086597]
[1733480377341,2.19199824,97871.0,97870.0,0.00186597]
[1733480377550,2.82249734,97871.0,97870.0,9.7e-07]
[1733480377789,2.85293598,97871.0,97870.0,9.7e-07]
[1733480378011,3.0734783,97871.0,97870.0,9.7e-07]
[1733480378226,2.852921,97871.0,97870.0,9.7e-07]
[1733480378694,0.704371,97861.0,97860.0,0.0008648]
[1733480378943,1.39440119,97861.0,97860.0,0.00144708]
[1733480379164,1.49650119,97861.0,97860.0,0.00144708]
[1733480379405,1.50182976,97861.0,97860.0,0.00144708]
[1733480379871,1.51082976,97861.0,97860.0,0.00144708]
[1733480380556,1.46082976,97861.0,97860.0,0.00144708]
[1733480380777,1.51082976,97861.0,97860.0,0.00144708]
[1733480381004,1.46082976,97861.0,97860.0,0.00144708]
[1733480381677,1.46982976,97861.0,97860.0,0.00134708]
[1733480382634,1.46082976,97861.0,97860.0,0.00134708]
[1733480382863,1.46982976,97861.0,97860.0,0.00134708]
[1733480383324,1.16982976,97861.0,97860.0,0.00134708]
[1733480383582,0.52573111,97861.0,97860.0,0.00134708]
[1733480384263,0.53473111,97861.0,97860.0,0.00134708]
[1733480384539,0.52573111,97861.0,97860.0,0.00134708]
[1733480384796,0.53473111,97861.0,97860.0,0.00134708]
[1733480385021,0.51673111,97861.0,97860.0,0.00134708]
[1733480385251,0.52573111,97861.0,97860.0,0.00134708]
[1733480385476,0.38473111,97861.0,97860.0,0.00134708]
[1733480386431,0.39321782,97861.0,97860.0,0.00134708]
[1733480386648,0.38473111,97861.0,97860.0,0.00134708]
[1733480386863,0.3932179,97861.0,97860.0,0.00134708]
[1733480387370,0.38473111,97861.0,97860.0,0.00134708]
[1733480388831,0.27969957,97861.0,97860.0,0.00134708]
[1733480389795,0.27969957,97861.0,97860.0,0.08294708]
[1733480389796,0.265371,97861.0,97860.0,0.08294708]
[1733480390019,0.274371,97861.0,97860.0,0.08294708]
[1733480390246,0.018,97861.0,97860.0,0.08294708]
[1733480390473,0.204355,97869.0,97860.0,0.08294708]
[1733480390474,0.204363,97865.0,97860.0,0.08294708]
[1733480390946,0.018,97861.0,97860.0,0.08294708]
[1733480391197,0.009,97861.0,97860.0,0.08294708]
[1733480391654,0.213363,97865.0,97860.0,0.08294708]
[1733480392161,0.222363,97865.0,97860.0,0.08294708]
[1733480392418,0.213363,97865.0,97860.0,0.08294708]
[1733480392646,0.009,97865.0,97860.0,0.08294708]
[1733480392861,0.009,97865.0,97857.0,0.204379]
[1733480393085,0.00058045,97865.0,97857.0,0.204379]
[1733480393330,0.00058045,97865.0,97858.0,0.00102177]
[1733480393552,0.009,97861.0,97858.0,0.00102177]
[1733480393994,0.00058045,97865.0,97862.0,0.204369]
[1733480394196,0.00058045,97865.0,97864.0,0.254365]
[1733480394402,0.00958045,97865.0,97864.0,0.35939654]
[1733480394825,0.00058045,97865.0,97864.0,0.35939654]
[1733480395248,0.00158045,97865.0,97864.0,0.35939654]
[1733480395870,0.00158045,97865.0,97864.0,0.48869654]
[1733480396925,0.00258045,97865.0,97864.0,0.49169654]
[1733480397127,0.00358045,97865.0,97864.0,0.50069654]
[1733480397336,0.00158045,97865.0,97864.0,0.44769654]
[1733480397742,0.00258045,97865.0,97864.0,0.57369654]
[1733480398152,0.00258045,97865.0,97864.0,0.6651337]
[1733480398481,0.00258045,97865.0,97864.0,0.66511706]
[1733480398652,0.00258045,97865.0,97864.0,0.57369654]
[1733480399705,0.00258045,97865.0,97864.0,0.66511304]
[1733480399912,0.00258045,97865.0,97864.0,0.50069654]
[1733480400129,0.00258045,97865.0,97864.0,0.55069654]
[1733480400342,0.00258045,97865.0,97864.0,0.50069654]
[1733480400459,0.00258045,97865.0,97864.0,0.55069654]
[1733480400663,0.00258045,97865.0,97864.0,0.50069654]
[1733480400861,0.00258045,97865.0,97864.0,0.45069654]
[1733480401069,0.00258045,97865.0,97864.0,0.50069654]
[1733480401472,0.00258045,97865.0,97864.0,0.55069654]
[1733480401681,0.00258045,97865.0,97864.0,0.50069654]
[1733480401885,0.00258045,97865.0,97864.0,0.55069654]
[1733480403053,0.00258045,97865.0,97864.0,0.012]
[1733480404153,0.00260227,97865.0,97864.0,0.003]
[1733480404607,0.01160227,97865.0,97864.0,0.004]
[1733480405074,0.01060227,97865.0,97864.0,0.001]
[1733480405459,0.01960227,97865.0,97864.0,0.001]
[1733480405632,0.01060227,97865.0,97864.0,0.001]
[1733480405834,0.40873,97864.0,97860.0,0.0008655]
[1733480406060,0.00160227,97865.0,97860.0,0.0008655]
[1733480406061,0.00958045,97865.0,97862.0,0.204368]
[1733480406260,0.00915307,97865.0,97864.0,0.051]
[1733480406471,0.00102182,97908.0,97879.0,0.286933]
[1733480406692,0.204275,97907.0,97879.0,0.39196454]
[1733480406954,0.00188472,97880.0,97879.0,0.39196454]
[1733480407409,0.00188472,97880.0,97879.0,0.18763154]
[1733480407641,0.00188472,97880.0,97879.0,0.0826]
[1733480409184,0.00188472,97880.0,97866.0,0.0788]
[1733480409393,0.00388472,97880.0,97879.0,0.018]
[1733480409916,0.00288472,97880.0,97879.0,0.009]
[1733480410116,0.00188472,97880.0,97866.0,0.0788]
[1733480410372,0.204347,97873.0,97866.0,0.018]
[1733480411628,0.204358,97867.0,97866.0,0.018]
[1733480412022,0.204358,97867.0,97866.0,0.009]
[1733480412685,0.204358,97867.0,97866.0,0.004]
[1733480412912,0.204358,97867.0,97860.0,0.0008655]
[1733480413032,0.204361,97866.0,97860.0,0.0008655]
[1733480413231,0.204363,97865.0,97860.0,0.0008655]
[1733480413873,0.204371,97861.0,97860.0,0.0008655]
[1733480414265,0.204371,97861.0,97860.0,0.0018655]
[1733480415284,0.204371,97861.0,97860.0,0.0028655]
[1733480415487,0.204371,97861.0,97860.0,0.0018655]
[1733480415685,0.204371,97861.0,97860.0,0.0008655]
[1733480415894,0.204371,97861.0,97860.0,0.0018655]
[1733480416093,0.265371,97861.0,97860.0,0.0018655]
[1733480416790,0.274371,97861.0,97860.0,0.0028655]
[1733480417199,0.018,97861.0,97860.0,0.0028655]
[1733480418620,0.018,97861.0,97860.0,0.00388728]
[1733480419446,0.018,97861.0,97860.0,0.0018655]
[1733480419447,0.009,97861.0,97860.0,0.0018655]
[1733480419659,0.204351,97871.0,97860.0,0.0008655]
[1733480419941,0.052,97877.0,97861.0,0.00102172]
[1733480420149,0.204349,97872.0,97861.0,0.00102172]
[1733480420583,0.204349,97872.0,97862.0,0.204369]
[1733480420834,0.20434,97876.0,97862.0,0.204369]
[1733480421043,0.40868,97876.0,97863.0,0.0010217]
[1733480421263,0.204349,97872.0,97863.0,0.0010217]
[1733480421505,0.204349,97872.0,97862.0,0.204369]
[1733480421703,0.20434,97876.0,97862.0,0.204369]
[1733480421940,0.20434,97876.0,97863.0,0.0010217]
[1733480422802,0.009,97872.0,97864.0,0.204365]
[1733480423041,0.009,97872.0,97866.0,0.204361]
[1733480423479,0.009,97872.0,97863.0,0.001]
[1733480423691,0.00188472,97880.0,97870.0,0.204352]
[1733480424172,0.009,97872.0,97871.0,0.00102167]
[1733480424397,0.009,97872.0,97871.0,0.18505321]
[1733480425270,0.00188472,97880.0,97879.0,0.204333]
[1733480426014,0.00188472,97880.0,97872.0,0.29578705]
[1733480426015,0.00188472,97880.0,97876.0,0.204338]
[1733480426236,0.00188472,97880.0,97877.0,0.00102154]
[1733480426556,0.00288472,97880.0,97879.0,0.009]
[1733480426756,0.00188472,97880.0,97879.0,0.00102154]
[1733480427234,0.00288472,97880.0,97879.0,0.00102154]
[1733480428327,0.00288472,97880.0,97879.0,0.10605308]
[1733480428552,0.204281,97905.0,97889.0,0.204313]
[1733480429187,0.204287,97902.0,97889.0,0.204313]
[1733480429832,0.19574304,97902.0,97889.0,0.204313]
[1733480430054,0.204281,97905.0,97891.0,0.204308]
[1733480430281,0.2250332,97913.0,97897.0,0.204295]
[1733480430282,0.204265,97912.0,97897.0,0.204295]
[1733480430510,0.204265,97912.0,97898.0,0.06038692]
[1733480430741,0.204274,97908.0,97898.0,0.06038692]
[1733480430953,0.408548,97908.0,97898.0,0.06038692]
[1733480431154,0.204283,97904.0,97898.0,0.00102133]
[1733480431393,0.204283,97904.0,97897.0,0.001]
[1733480431602,0.20429,97900.0,97884.0,0.283323]
[1733480431810,0.20429,97900.0,97885.0,0.10503154]
[1733480432082,0.20429,97900.0,97891.0,0.001]
[1733480432477,0.20429,97900.0,97892.0,0.00509934]
[1733480432905,0.20429,97900.0,97893.0,0.00509934]
[1733480433100,0.204283,97904.0,97898.0,0.001]
[1733480433309,0.204283,97904.0,97890.0,0.00102142]
[1733480433310,0.204283,97904.0,97894.0,0.00509934]
[1733480433584,0.204283,97904.0,97891.0,0.408616]
[1733480433809,0.006,97900.0,97895.0,0.20939834]
[1733480434025,0.204274,97908.0,97895.0,0.204299]
[1733480434238,0.006,97904.0,97898.0,0.001]
[1733480434660,0.006,97904.0,97899.0,0.20939134]
[1733480434907,0.460571,97902.0,97899.0,0.00509934]
[1733480435118,0.20429,97900.0,97899.0,0.00509934]
[1733480435367,0.256285,97902.0,97894.0,0.001]
[1733480435584,0.204296,97897.0,97894.0,0.001]
[1733480435811,0.2043,97895.0,97894.0,0.001]
[1733480436027,0.204303,97894.0,97891.0,0.001]
[1733480436227,0.408606,97894.0,97891.0,0.001]
[1733480436430,0.408606,97894.0,97873.0,0.204346]
[1733480436431,0.204323,97884.0,97873.0,0.204346]
[1733480436563,0.204316,97888.0,97874.0,0.3103971]
[1733480436767,0.204316,97888.0,97875.0,0.07934989]
[1733480436979,0.204316,97888.0,97874.0,0.00509934]
[1733480437243,0.052,97892.0,97872.0,0.09156338]
[1733480437244,0.204323,97884.0,97872.0,0.09156338]
[1733480437447,0.052,97892.0,97875.0,0.00509934]
[1733480437448,0.204334,97879.0,97875.0,0.00509934]
[1733480437603,0.204326,97883.0,97863.0,0.09156338]
[1733480437604,0.040866,97878.0,97863.0,0.09156338]
[1733480437937,0.408731,97864.0,97860.0,0.09738888]
[1733480438110,0.408731,97864.0,97860.0,0.0058255]
[1733480438940,0.4088558,97864.0,97860.0,0.0058255]
[1733480439189,0.47017738,97864.0,97860.0,0.0148255]
[1733480439626,0.47017738,97864.0,97860.0,0.0058255]
[1733480439915,0.4088558,97864.0,97860.0,0.0058255]
[1733480440150,0.2094898,97864.0,97863.0,0.009]
[1733480440379,0.2094898,97864.0,97860.0,0.0068255]